[Event "Titled Tuesday Blitz November 15 Early 2022"]
[White "Janaszak, Dawid"]
[Black "Rakhmanov, Aleksandr"]
[WhiteFideId "1119206"]
[BlackFideId "4173708"]
[WhiteElo "2226"]
[BlackElo "2530"]
[Result "1-0"]
[Round "05"]
[TimeControl "180+1"]
[Date "2022.11.16"]
[WhiteClock "0:00:09"]
[BlackClock "0:00:06"]

1. e4 {[%clk 0:03:00]}  c5 {[%clk 0:02:59]} 2. Nc3 {[%clk 0:03:00]}  Nf6 {[%clk 0:03:00]} 3. e5 {[%clk 0:02:49]}  Ng8 {[%clk 0:02:59]} 4. Bc4 {[%clk 0:02:41]}  Nc6 {[%clk 0:02:59]} 5. Nf3 {[%clk 0:02:40]}  e6 {[%clk 0:02:56]} 6. O-O {[%clk 0:02:35]}  a6 {[%clk 0:02:56]} 7. a4 {[%clk 0:02:33]}  d5 {[%clk 0:02:56]} 8. exd6 {[%clk 0:02:33]}  Bxd6 {[%clk 0:02:56]} 9. Ne4 {[%clk 0:02:28]}  Nf6 {[%clk 0:02:37]} 10. Nxd6+ {[%clk 0:02:26]}  Qxd6 {[%clk 0:02:38]} 11. b3 {[%clk 0:02:16]}  O-O {[%clk 0:02:35]} 12. Bb2 {[%clk 0:02:16]}  e5 {[%clk 0:02:26]} 13. Re1 {[%clk 0:02:04]}  Bg4 {[%clk 0:02:08]} 14. h3 {[%clk 0:02:01]}  Bxf3 {[%clk 0:01:54]} 15. Qxf3 {[%clk 0:02:02]}  Rad8 {[%clk 0:01:46]} 16. Rad1 {[%clk 0:01:29]}  Rfe8 {[%clk 0:01:46]} 17. Qg3 {[%clk 0:01:25]}  Re7 {[%clk 0:01:42]} 18. Bc3 {[%clk 0:01:19]}  Nd4 {[%clk 0:01:36]} 19. Bxd4 {[%clk 0:01:15]}  cxd4 {[%clk 0:01:33]} 20. Re2 {[%clk 0:00:50]}  Qc5 {[%clk 0:01:22]} 21. Rde1 {[%clk 0:00:46]}  Rde8 {[%clk 0:01:13]} 22. Qh4 {[%clk 0:00:46]}  e4 {[%clk 0:00:48]} 23. d3 {[%clk 0:00:21]}  b5 {[%clk 0:00:35]} 24. axb5 {[%clk 0:00:21]}  axb5 {[%clk 0:00:35]} 25. b4 {[%clk 0:00:21]}  Qxb4 {[%clk 0:00:33]} 26. Bb3 {[%clk 0:00:21]}  exd3 {[%clk 0:00:27]} 27. Rxe7 {[%clk 0:00:21]}  Rxe7 {[%clk 0:00:18]} 28. Rxe7 {[%clk 0:00:21]}  Qxe7 {[%clk 0:00:18]} 29. cxd3 {[%clk 0:00:16]}  Qe1+ {[%clk 0:00:16]} 30. Kh2 {[%clk 0:00:16]}  Qe5+ {[%clk 0:00:16]} 31. f4 {[%clk 0:00:15]}  Qe3 {[%clk 0:00:15]} 32. Qg5 {[%clk 0:00:14]}  h6 {[%clk 0:00:14]} 33. Qxb5 {[%clk 0:00:13]}  Qxf4+ {[%clk 0:00:14]} 34. Kh1 {[%clk 0:00:14]}  Qf1+ {[%clk 0:00:11]} 35. Kh2 {[%clk 0:00:14]}  Qf4+ {[%clk 0:00:12]} 36. Kh1 {[%clk 0:00:14]}  Qc7 {[%clk 0:00:11]} 37. Bc4 {[%clk 0:00:08]}  g6 {[%clk 0:00:09]} 38. Qb2 {[%clk 0:00:06]}  Qd7 {[%clk 0:00:08]} 39. Qb8+ {[%clk 0:00:06]}  Kg7 {[%clk 0:00:08]} 40. Qe5 {[%clk 0:00:07]}  h5 {[%clk 0:00:07]} 41. Bb3 {[%clk 0:00:06]}  Qb7 {[%clk 0:00:06]} 42. Bc4 {[%clk 0:00:06]}  Qb6 {[%clk 0:00:05]} 43. Kh2 {[%clk 0:00:05]}  h4 {[%clk 0:00:03]} 44. Kh1 {[%clk 0:00:05]}  Qa7 {[%clk 0:00:03]} 45. Kh2 {[%clk 0:00:06]}  Qd7 {[%clk 0:00:03]} 46. Kh1 {[%clk 0:00:06]}  Qd8 {[%clk 0:00:02]} 47. Kh2 {[%clk 0:00:06]}  Kg8 {[%clk 0:00:02]} 48. Qf4 {[%clk 0:00:05]}  Nh5 {[%clk 0:00:02]} 49. Qxf7+ {[%clk 0:00:05]}  Kh8 {[%clk 0:00:03]} 50. Qxg6 {[%clk 0:00:05]}  Qb8+ {[%clk 0:00:02]} 51. Kg1 {[%clk 0:00:05]}  Qb1+ {[%clk 0:00:03]} 52. Kh2 {[%clk 0:00:05]}  Qb8+ {[%clk 0:00:02]} 53. Kg1 {[%clk 0:00:05]}  Qb1+ {[%clk 0:00:02]} 54. Kf2 {[%clk 0:00:04]}  Qc2+ {[%clk 0:00:01]} 55. Kf3 {[%clk 0:00:04]}  Qd1+ {[%clk 0:00:02]} 56. Ke4 {[%clk 0:00:05]}  Ng3+ {[%clk 0:00:02]} 57. Kd5 {[%clk 0:00:04]}  Qh5+ {[%clk 0:00:01]} 58. Qxh5+ {[%clk 0:00:04]}  Nxh5 {[%clk 0:00:02]} 59. Kxd4 {[%clk 0:00:05]}  Nf4 {[%clk 0:00:03]} 60. Bd5 {[%clk 0:00:05]}  Kg7 {[%clk 0:00:03]} 61. Bf3 {[%clk 0:00:03]}  Kf6 {[%clk 0:00:04]} 62. Ke4 {[%clk 0:00:04]}  Ne6 {[%clk 0:00:04]} 63. d4 {[%clk 0:00:04]}  Kg5 {[%clk 0:00:03]} 64. d5 {[%clk 0:00:05]}  Nc5+ {[%clk 0:00:03]} 65. Ke5 {[%clk 0:00:06]}  Nd3+ {[%clk 0:00:03]} 66. Ke6 {[%clk 0:00:06]}  Nf4+ {[%clk 0:00:04]} 67. Ke5 {[%clk 0:00:06]}  Ng6+ {[%clk 0:00:03]} 68. Ke6 {[%clk 0:00:07]}  Nf4+ {[%clk 0:00:04]} 69. Ke7 {[%clk 0:00:07]}  Nxd5+ {[%clk 0:00:03]} 70. Bxd5 {[%clk 0:00:08]}  Kf4 {[%clk 0:00:04]} 71. Bf3 {[%clk 0:00:08]}  Kg3 {[%clk 0:00:05]} 72. Kf6 {[%clk 0:00:09]}  Kh2 {[%clk 0:00:05]} 73. Kg5 {[%clk 0:00:09]}  Kg1 {[%clk 0:00:06]} 74. Kxh4 {[%clk 0:00:09]} 1-0


[Site "https://www.chess.com"]

[Event "Titled Tuesday Blitz November 15 Early 2022"]
[White "Jiganchine, Roman"]
[Black "Skliarov, Viktor"]
[WhiteFideId "2603667"]
[BlackFideId "14106736"]
[WhiteElo "2319"]
[BlackElo "2284"]
[Result "0-1"]
[Round "05"]
[TimeControl "180+1"]
[Date "2022.11.16"]
[WhiteClock "0:00:14"]
[BlackClock "0:00:31"]

1. e4 {[%clk 0:02:59]}  c5 {[%clk 0:02:59]} 2. Nf3 {[%clk 0:02:58]}  Nc6 {[%clk 0:02:59]} 3. Bb5 {[%clk 0:02:57]}  e6 {[%clk 0:02:59]} 4. O-O {[%clk 0:02:54]}  Nge7 {[%clk 0:02:58]} 5. Re1 {[%clk 0:02:53]}  Nd4 {[%clk 0:02:58]} 6. Nc3 {[%clk 0:02:45]}  a6 {[%clk 0:02:51]} 7. Bf1 {[%clk 0:02:41]}  b5 {[%clk 0:02:50]} 8. Nxd4 {[%clk 0:02:24]}  cxd4 {[%clk 0:02:50]} 9. Ne2 {[%clk 0:02:24]}  Nc6 {[%clk 0:02:38]} 10. a4 {[%clk 0:02:21]}  b4 {[%clk 0:02:34]} 11. f4 {[%clk 0:02:20]}  d3 {[%clk 0:02:13]} 12. cxd3 {[%clk 0:02:15]}  Bc5+ {[%clk 0:02:13]} 13. Kh1 {[%clk 0:02:15]}  Bf2 {[%clk 0:02:09]} 14. Ng1 {[%clk 0:01:46]}  Bxe1 {[%clk 0:02:02]} 15. Qxe1 {[%clk 0:01:47]}  d5 {[%clk 0:02:01]} 16. Nf3 {[%clk 0:01:44]}  O-O {[%clk 0:02:00]} 17. b3 {[%clk 0:01:42]}  d4 {[%clk 0:01:38]} 18. Bb2 {[%clk 0:01:35]}  f6 {[%clk 0:01:38]} 19. Rc1 {[%clk 0:01:34]}  Bb7 {[%clk 0:01:30]} 20. Rxc6 {[%clk 0:01:24]}  Bxc6 {[%clk 0:01:28]} 21. Nxd4 {[%clk 0:01:23]}  Bd7 {[%clk 0:01:23]} 22. e5 {[%clk 0:01:18]}  f5 {[%clk 0:01:19]} 23. Be2 {[%clk 0:01:18]}  Rc8 {[%clk 0:01:16]} 24. Bf3 {[%clk 0:01:18]}  Qb6 {[%clk 0:01:16]} 25. h3 {[%clk 0:01:09]}  Bc6 {[%clk 0:01:03]} 26. Nxe6 {[%clk 0:00:51]}  Bxf3 {[%clk 0:01:00]} 27. Nxf8 {[%clk 0:00:51]}  Bd5 {[%clk 0:00:47]} 28. Nd7 {[%clk 0:00:42]}  Qg6 {[%clk 0:00:47]} 29. Qe2 {[%clk 0:00:33]}  Rc2 {[%clk 0:00:43]} 30. Bd4 {[%clk 0:00:23]}  Qg3 {[%clk 0:00:31]} 31. e6 {[%clk 0:00:20]}  Rc1+ {[%clk 0:00:31]} 32. Bg1 {[%clk 0:00:14]}  Qxh3# {[%clk 0:00:31]} 0-1


[Site "https://www.chess.com"]

[Event "Titled Tuesday Blitz November 15 Early 2022"]
[White "Jones, Gawain C B"]
[Black "Beerdsen, Thomas"]
[WhiteFideId "409561"]
[BlackFideId "1030108"]
[WhiteElo "2657"]
[BlackElo "2567"]
[Result "1-0"]
[Round "05"]
[TimeControl "180+1"]
[Date "2022.11.15"]
[WhiteClock "0:00:04"]
[BlackClock "0:00:03"]

1. e4 {[%clk 0:02:56]}  e5 {[%clk 0:02:58]} 2. Nf3 {[%clk 0:02:56]}  Nc6 {[%clk 0:02:59]} 3. Bc4 {[%clk 0:02:52]}  Nf6 {[%clk 0:02:59]} 4. d3 {[%clk 0:02:49]}  h6 {[%clk 0:02:59]} 5. Nc3 {[%clk 0:02:48]}  Bd6 {[%clk 0:02:57]} 6. h3 {[%clk 0:02:43]}  a6 {[%clk 0:02:42]} 7. a3 {[%clk 0:02:37]}  b5 {[%clk 0:02:35]} 8. Ba2 {[%clk 0:02:37]}  Bb7 {[%clk 0:02:28]} 9. Be3 {[%clk 0:02:37]}  Ne7 {[%clk 0:02:21]} 10. d4 {[%clk 0:02:28]}  Ng6 {[%clk 0:02:20]} 11. Qd3 {[%clk 0:02:06]}  O-O {[%clk 0:02:10]} 12. O-O-O {[%clk 0:01:58]}  Qe7 {[%clk 0:01:59]} 13. Rhe1 {[%clk 0:01:55]}  b4 {[%clk 0:01:46]} 14. axb4 {[%clk 0:01:49]}  Bxb4 {[%clk 0:01:46]} 15. dxe5 {[%clk 0:01:21]}  Bxc3 {[%clk 0:01:45]} 16. Qxc3 {[%clk 0:00:54]}  Nxe4 {[%clk 0:01:44]} 17. Qd4 {[%clk 0:00:52]}  Rad8 {[%clk 0:01:22]} 18. Bd5 {[%clk 0:00:50]}  Bxd5 {[%clk 0:01:17]} 19. Qxd5 {[%clk 0:00:50]}  Ng5 {[%clk 0:01:16]} 20. Nxg5 {[%clk 0:00:48]}  hxg5 {[%clk 0:01:17]} 21. Bc5 {[%clk 0:00:48]}  d6 {[%clk 0:01:02]} 22. exd6 {[%clk 0:00:47]}  Qf6 {[%clk 0:01:03]} 23. d7 {[%clk 0:00:40]}  Rb8 {[%clk 0:00:48]} 24. Qd4 {[%clk 0:00:33]}  Qxd4 {[%clk 0:00:41]} 25. Rxd4 {[%clk 0:00:32]}  Rfd8 {[%clk 0:00:42]} 26. Red1 {[%clk 0:00:21]}  Rb5 {[%clk 0:00:41]} 27. b4 {[%clk 0:00:20]}  f6 {[%clk 0:00:38]} 28. c4 {[%clk 0:00:18]}  Rbb8 {[%clk 0:00:38]} 29. Kc2 {[%clk 0:00:18]}  Ne5 {[%clk 0:00:36]} 30. Kc3 {[%clk 0:00:18]}  Kf7 {[%clk 0:00:33]} 31. g3 {[%clk 0:00:18]}  Nc6 {[%clk 0:00:29]} 32. Re4 {[%clk 0:00:17]}  Ne5 {[%clk 0:00:24]} 33. f4 {[%clk 0:00:14]}  gxf4 {[%clk 0:00:20]} 34. gxf4 {[%clk 0:00:15]}  Nc6 {[%clk 0:00:20]} 35. h4 {[%clk 0:00:13]}  Rh8 {[%clk 0:00:20]} 36. f5 {[%clk 0:00:06]}  Ne5 {[%clk 0:00:20]} 37. Rd5 {[%clk 0:00:04]}  Rbd8 {[%clk 0:00:19]} 38. b5 {[%clk 0:00:04]}  axb5 {[%clk 0:00:19]} 39. cxb5 {[%clk 0:00:05]}  Rh5 {[%clk 0:00:17]} 40. Rf4 {[%clk 0:00:03]}  Rhh8 {[%clk 0:00:15]} 41. Rfd4 {[%clk 0:00:02]}  Nf3 {[%clk 0:00:13]} 42. Rd1 {[%clk 0:00:01]}  Rxh4 {[%clk 0:00:12]} 43. b6 {[%clk 0:00:02]}  cxb6 {[%clk 0:00:09]} 44. Bxb6 {[%clk 0:00:03]}  Rhh8 {[%clk 0:00:10]} 45. Bxd8 {[%clk 0:00:03]}  Rxd8 {[%clk 0:00:11]} 46. Re1 {[%clk 0:00:03]}  Ne5 {[%clk 0:00:11]} 47. Red1 {[%clk 0:00:04]}  Ke7 {[%clk 0:00:12]} 48. R1d4 {[%clk 0:00:04]}  Rxd7 {[%clk 0:00:11]} 49. Rxd7+ {[%clk 0:00:05]}  Nxd7 {[%clk 0:00:12]} 50. Kd3 {[%clk 0:00:05]}  Nf8 {[%clk 0:00:09]} 51. Ke4 {[%clk 0:00:04]}  g6 {[%clk 0:00:09]} 52. Rd1 {[%clk 0:00:03]}  Kf7 {[%clk 0:00:07]} 53. Ra1 {[%clk 0:00:03]}  gxf5+ {[%clk 0:00:07]} 54. Kxf5 {[%clk 0:00:04]}  Ng6 {[%clk 0:00:08]} 55. Ra6 {[%clk 0:00:04]}  Ne7+ {[%clk 0:00:08]} 56. Kg4 {[%clk 0:00:04]}  Kg7 {[%clk 0:00:07]} 57. Kh5 {[%clk 0:00:04]}  Kf7 {[%clk 0:00:07]} 58. Ra7 {[%clk 0:00:04]}  Ke6 {[%clk 0:00:08]} 59. Kh6 {[%clk 0:00:05]}  Nf5+ {[%clk 0:00:08]} 60. Kg6 {[%clk 0:00:05]}  Nh4+ {[%clk 0:00:09]} 61. Kh5 {[%clk 0:00:06]}  Nf3 {[%clk 0:00:07]} 62. Ra6+ {[%clk 0:00:05]}  Kf5 {[%clk 0:00:08]} 63. Kh6 {[%clk 0:00:04]}  Nd2 {[%clk 0:00:05]} 64. Ra5+ {[%clk 0:00:04]}  Kf4 {[%clk 0:00:05]} 65. Kg6 {[%clk 0:00:04]}  Ne4 {[%clk 0:00:05]} 66. Rf5+ {[%clk 0:00:04]}  Kg4 {[%clk 0:00:06]} 67. Rb5 {[%clk 0:00:05]}  Kf4 {[%clk 0:00:05]} 68. Rb4 {[%clk 0:00:05]}  f5 {[%clk 0:00:03]} 69. Ra4 {[%clk 0:00:06]}  Kg4 {[%clk 0:00:03]} 70. Kf7 {[%clk 0:00:04]}  Kf3 {[%clk 0:00:02]} 71. Ke6 {[%clk 0:00:04]}  f4 {[%clk 0:00:03]} 72. Ke5 {[%clk 0:00:04]}  Nd2 {[%clk 0:00:02]} 73. Rxf4+ {[%clk 0:00:04]}  Ke3 {[%clk 0:00:03]} 74. Rf8 {[%clk 0:00:04]}  Nf3+ {[%clk 0:00:03]} 75. Kd5 {[%clk 0:00:05]}  Nd2 {[%clk 0:00:03]} 76. Ra8 {[%clk 0:00:04]}  Kd3 {[%clk 0:00:02]} 77. Ra3+ {[%clk 0:00:04]}  Ke2 {[%clk 0:00:03]} 78. Kd4 {[%clk 0:00:04]}  Nf3+ {[%clk 0:00:04]} 79. Ke4 {[%clk 0:00:04]}  Nd2+ {[%clk 0:00:04]} 80. Kf4 {[%clk 0:00:05]}  Kd1 {[%clk 0:00:05]} 81. Ra2 {[%clk 0:00:05]}  Ke2 {[%clk 0:00:04]} 82. Rb2 {[%clk 0:00:04]}  Kd3 {[%clk 0:00:05]} 83. Rb8 {[%clk 0:00:02]}  Nc4 {[%clk 0:00:05]} 84. Rd8+ {[%clk 0:00:03]}  Kc3 {[%clk 0:00:05]} 85. Ke4 {[%clk 0:00:03]}  Nd2+ {[%clk 0:00:05]} 86. Ke3 {[%clk 0:00:03]}  Nc4+ {[%clk 0:00:06]} 87. Ke2 {[%clk 0:00:04]}  Kb4 {[%clk 0:00:07]} 88. Rc8 {[%clk 0:00:04]}  Nd6 {[%clk 0:00:06]} 89. Rc6 {[%clk 0:00:04]}  Nb5 {[%clk 0:00:06]} 90. Kd3 {[%clk 0:00:04]}  Na7 {[%clk 0:00:06]} 91. Rc4+ {[%clk 0:00:03]}  Kb5 {[%clk 0:00:06]} 92. Rc1 {[%clk 0:00:02]}  Nc6 {[%clk 0:00:06]} 93. Rc3 {[%clk 0:00:02]}  Kb6 {[%clk 0:00:06]} 94. Ke4 {[%clk 0:00:02]}  Nb4 {[%clk 0:00:06]} 95. Kd4 {[%clk 0:00:02]}  Nc6+ {[%clk 0:00:06]} 96. Kd5 {[%clk 0:00:02]}  Na7 {[%clk 0:00:06]} 97. Rc1 {[%clk 0:00:02]}  Nb5 {[%clk 0:00:06]} 98. Rc6+ {[%clk 0:00:02]}  Kb7 {[%clk 0:00:06]} 99. Kc5 {[%clk 0:00:02]}  Nc7 {[%clk 0:00:06]} 100. Rh6 {[%clk 0:00:01]}  Na6+ {[%clk 0:00:06]} 101. Kd5 {[%clk 0:00:02]}  Nb4+ {[%clk 0:00:06]} 102. Kc4 {[%clk 0:00:02]}  Nc6 {[%clk 0:00:06]} 103. Kc5 {[%clk 0:00:03]}  Na7 {[%clk 0:00:02]} 104. Rh7+ {[%clk 0:00:03]}  Ka6 {[%clk 0:00:02]} 105. Rg7 {[%clk 0:00:03]}  Nc8 {[%clk 0:00:02]} 106. Rc7 {[%clk 0:00:02]}  Na7 {[%clk 0:00:02]} 107. Rd7 {[%clk 0:00:02]}  Nc8 {[%clk 0:00:03]} 108. Rd8 {[%clk 0:00:03]}  Na7 {[%clk 0:00:03]} 109. Rb8 {[%clk 0:00:04]}  Ka5 {[%clk 0:00:03]} 110. Rb7 {[%clk 0:00:04]}  Ka6 {[%clk 0:00:02]} 111. Rb1 {[%clk 0:00:05]}  Nc8 {[%clk 0:00:02]} 112. Rb2 {[%clk 0:00:05]}  Ka7 {[%clk 0:00:02]} 113. Kc6 {[%clk 0:00:04]}  Ne7+ {[%clk 0:00:03]} 114. Kd6 {[%clk 0:00:03]}  Nc8+ {[%clk 0:00:03]} 115. Kc7 {[%clk 0:00:04]}  Ne7 {[%clk 0:00:03]} 116. Ra2# {[%clk 0:00:04]} 1-0


[Site "https://www.chess.com"]

[Event "Titled Tuesday Blitz November 15 Early 2022"]
[White "Jumabayev, Rinat"]
[Black "Itgelt, Khuyagtsogt"]
[WhiteFideId "13702661"]
[BlackFideId "4902912"]
[WhiteElo "2854"]
[BlackElo "2673"]
[Result "1-0"]
[Round "05"]
[TimeControl "180+1"]
[Date "2022.11.16"]
[WhiteClock "0:00:48"]
[BlackClock "0:00:05"]

1. d4 {[%clk 0:03:00]}  Nf6 {[%clk 0:02:57]} 2. c4 {[%clk 0:02:59]}  e6 {[%clk 0:02:57]} 3. Nf3 {[%clk 0:02:59]}  d5 {[%clk 0:02:57]} 4. g3 {[%clk 0:02:59]}  Be7 {[%clk 0:02:58]} 5. Bg2 {[%clk 0:03:00]}  O-O {[%clk 0:02:57]} 6. O-O {[%clk 0:03:00]}  dxc4 {[%clk 0:02:57]} 7. Qc2 {[%clk 0:03:01]}  b6 {[%clk 0:02:57]} 8. Ng5 {[%clk 0:02:58]}  c6 {[%clk 0:02:48]} 9. Rd1 {[%clk 0:02:59]}  h6 {[%clk 0:02:46]} 10. Nf3 {[%clk 0:02:57]}  b5 {[%clk 0:02:43]} 11. Ne5 {[%clk 0:02:54]}  Nd5 {[%clk 0:02:43]} 12. b3 {[%clk 0:02:42]}  cxb3 {[%clk 0:02:34]} 13. axb3 {[%clk 0:02:43]}  Bb7 {[%clk 0:02:17]} 14. Nc3 {[%clk 0:02:22]}  Nd7 {[%clk 0:02:03]} 15. Ne4 {[%clk 0:02:15]}  Nxe5 {[%clk 0:01:55]} 16. dxe5 {[%clk 0:02:15]}  Qc7 {[%clk 0:01:54]} 17. Bb2 {[%clk 0:02:08]}  c5 {[%clk 0:01:49]} 18. Rac1 {[%clk 0:01:56]}  Rfd8 {[%clk 0:01:07]} 19. Nd6 {[%clk 0:01:37]}  Bxd6 {[%clk 0:00:44]} 20. exd6 {[%clk 0:01:37]}  Rxd6 {[%clk 0:00:45]} 21. Be5 {[%clk 0:01:36]}  Rad8 {[%clk 0:00:07]} 22. Bxd6 {[%clk 0:01:35]}  Rxd6 {[%clk 0:00:04]} 23. Qxc5 {[%clk 0:01:36]}  Rc6 {[%clk 0:00:03]} 24. Qa3 {[%clk 0:01:36]}  b4 {[%clk 0:00:03]} 25. Qb2 {[%clk 0:01:36]}  Rc3 {[%clk 0:00:03]} 26. Bxd5 {[%clk 0:01:27]}  Bxd5 {[%clk 0:00:04]} 27. Rxc3 {[%clk 0:01:27]}  bxc3 {[%clk 0:00:05]} 28. Qc2 {[%clk 0:01:28]}  Qb6 {[%clk 0:00:05]} 29. Qxc3 {[%clk 0:01:27]}  Qxb3 {[%clk 0:00:06]} 30. Qxb3 {[%clk 0:01:25]}  Bxb3 {[%clk 0:00:06]} 31. Ra1 {[%clk 0:01:24]}  Bc4 {[%clk 0:00:06]} 32. Kf1 {[%clk 0:01:22]}  a6 {[%clk 0:00:06]} 33. Ke1 {[%clk 0:01:22]}  g5 {[%clk 0:00:07]} 34. Kd2 {[%clk 0:01:22]}  Bb5 {[%clk 0:00:07]} 35. e4 {[%clk 0:01:23]}  Kg7 {[%clk 0:00:08]} 36. Kc3 {[%clk 0:01:23]}  Kf6 {[%clk 0:00:09]} 37. Kd4 {[%clk 0:01:24]}  g4 {[%clk 0:00:09]} 38. Rc1 {[%clk 0:01:23]}  h5 {[%clk 0:00:08]} 39. Rc5 {[%clk 0:01:23]}  Kg6 {[%clk 0:00:08]} 40. Ke5 {[%clk 0:01:22]}  Bd3 {[%clk 0:00:07]} 41. Rc8 {[%clk 0:01:20]}  Kg7 {[%clk 0:00:05]} 42. Rd8 {[%clk 0:01:15]}  Bb5 {[%clk 0:00:06]} 43. Kd6 {[%clk 0:01:10]}  Kf6 {[%clk 0:00:05]} 44. Rh8 {[%clk 0:01:03]}  Kg6 {[%clk 0:00:05]} 45. Ke7 {[%clk 0:00:58]}  Bd3 {[%clk 0:00:05]} 46. Rg8+ {[%clk 0:00:58]}  Kh7 {[%clk 0:00:04]} 47. Kxf7 {[%clk 0:00:56]}  Bxe4 {[%clk 0:00:05]} 48. Rg5 {[%clk 0:00:57]}  Kh6 {[%clk 0:00:04]} 49. Kf6 {[%clk 0:00:51]}  Bf5 {[%clk 0:00:04]} 50. Rg8 {[%clk 0:00:50]}  Kh7 {[%clk 0:00:04]} 51. Ra8 {[%clk 0:00:50]}  Bd3 {[%clk 0:00:04]} 52. Kxe6 {[%clk 0:00:50]}  Kg6 {[%clk 0:00:05]} 53. Rg8+ {[%clk 0:00:49]}  Kh6 {[%clk 0:00:04]} 54. Kf6 {[%clk 0:00:49]}  Bb5 {[%clk 0:00:05]} 55. Rh8# {[%clk 0:00:48]} 1-0


[Site "https://www.chess.com"]

[Event "Titled Tuesday Blitz November 15 Early 2022"]
[White "Kaplan, Avi Harrison"]
[Black "Ricaurte Lopez, Juan Carlos"]
[WhiteFideId "30934559"]
[BlackFideId "3600327"]
[WhiteElo "1983"]
[BlackElo "2209"]
[Result "1-0"]
[Round "05"]
[TimeControl "180+1"]
[Date "2022.11.16"]
[WhiteClock "0:00:41"]
[BlackClock "0:00:01"]

1. a3 {[%clk 0:03:00]}  e5 {[%clk 0:02:55]} 2. c4 {[%clk 0:02:59]}  Nf6 {[%clk 0:02:54]} 3. d3 {[%clk 0:02:57]}  c6 {[%clk 0:02:54]} 4. Nf3 {[%clk 0:02:55]}  e4 {[%clk 0:02:45]} 5. dxe4 {[%clk 0:02:50]}  Nxe4 {[%clk 0:02:42]} 6. Nbd2 {[%clk 0:02:50]}  f5 {[%clk 0:02:20]} 7. g3 {[%clk 0:02:30]}  Bc5 {[%clk 0:02:11]} 8. Nxe4 {[%clk 0:02:14]}  fxe4 {[%clk 0:02:09]} 9. Ng5 {[%clk 0:02:13]}  e3 {[%clk 0:02:05]} 10. f4 {[%clk 0:01:54]}  O-O {[%clk 0:01:47]} 11. b4 {[%clk 0:01:48]}  Be7 {[%clk 0:01:23]} 12. Bxe3 {[%clk 0:01:31]}  Bxg5 {[%clk 0:01:21]} 13. fxg5 {[%clk 0:01:32]}  Qe7 {[%clk 0:01:19]} 14. Bc5 {[%clk 0:01:29]}  Qe5 {[%clk 0:00:50]} 15. Bxf8 {[%clk 0:01:27]}  Kxf8 {[%clk 0:00:41]} 16. Bg2 {[%clk 0:01:26]}  Qc3+ {[%clk 0:00:37]} 17. Kf2 {[%clk 0:01:26]}  d5 {[%clk 0:00:30]} 18. Rf1 {[%clk 0:01:20]}  Be6 {[%clk 0:00:18]} 19. Kg1+ {[%clk 0:01:19]}  Ke7 {[%clk 0:00:19]} 20. cxd5 {[%clk 0:01:19]}  cxd5 {[%clk 0:00:16]} 21. Bxd5 {[%clk 0:01:20]}  Nc6 {[%clk 0:00:15]} 22. Bxe6 {[%clk 0:01:14]}  Kxe6 {[%clk 0:00:14]} 23. Rf3 {[%clk 0:01:14]}  Qe5 {[%clk 0:00:12]} 24. Rc1 {[%clk 0:01:10]}  Nd4 {[%clk 0:00:11]} 25. Rf2 {[%clk 0:00:56]}  Qe3 {[%clk 0:00:10]} 26. Rc4 {[%clk 0:00:53]}  Nc6 {[%clk 0:00:01]} 27. Kg2 {[%clk 0:00:44]}  Rd8 {[%clk 0:00:01]} 28. Qa1 {[%clk 0:00:42]}  Rd2 {[%clk 0:00:01]} 29. Qxg7 {[%clk 0:00:41]} 1-0


[Site "https://www.chess.com"]

[Event "Titled Tuesday Blitz November 15 Early 2022"]
[White "Kiseljova, Marya"]
[Black "Buscar, Michael"]
[WhiteFideId "4155009"]
[BlackFideId "2603616"]
[WhiteElo "1907"]
[BlackElo "2010"]
[Result "0-1"]
[Round "05"]
[TimeControl "180+1"]
[Date "2022.11.16"]
[WhiteClock "0:00:03"]
[BlackClock "0:00:07"]

1. d4 {[%clk 0:02:57]}  d5 {[%clk 0:02:26]} 2. c4 {[%clk 0:02:57]}  e6 {[%clk 0:02:26]} 3. Nf3 {[%clk 0:02:57]}  c5 {[%clk 0:02:26]} 4. g3 {[%clk 0:02:54]}  Nf6 {[%clk 0:02:24]} 5. Bg2 {[%clk 0:02:54]}  Nc6 {[%clk 0:02:24]} 6. O-O {[%clk 0:02:49]}  cxd4 {[%clk 0:02:14]} 7. Nxd4 {[%clk 0:02:40]}  Bc5 {[%clk 0:02:11]} 8. Nxc6 {[%clk 0:02:32]}  bxc6 {[%clk 0:02:12]} 9. Qa4 {[%clk 0:02:24]}  Bb7 {[%clk 0:02:05]} 10. cxd5 {[%clk 0:02:07]}  exd5 {[%clk 0:01:59]} 11. Nc3 {[%clk 0:02:00]}  O-O {[%clk 0:01:58]} 12. Bg5 {[%clk 0:01:59]}  Be7 {[%clk 0:01:57]} 13. Rac1 {[%clk 0:01:52]}  Re8 {[%clk 0:01:47]} 14. Rfd1 {[%clk 0:01:37]}  Ne4 {[%clk 0:01:34]} 15. Bxe7 {[%clk 0:01:33]}  Nxc3 {[%clk 0:01:33]} 16. Rxc3 {[%clk 0:01:19]}  Qxe7 {[%clk 0:01:31]} 17. e3 {[%clk 0:01:17]}  Rac8 {[%clk 0:01:09]} 18. Bh3 {[%clk 0:00:56]}  Rc7 {[%clk 0:01:00]} 19. a3 {[%clk 0:00:52]}  c5 {[%clk 0:00:51]} 20. Rdc1 {[%clk 0:00:42]}  d4 {[%clk 0:00:48]} 21. exd4 {[%clk 0:00:27]}  Qe4 {[%clk 0:00:40]} 22. f3 {[%clk 0:00:23]}  Qe2 {[%clk 0:00:35]} 23. Qc2 {[%clk 0:00:17]}  Qe7 {[%clk 0:00:19]} 24. dxc5 {[%clk 0:00:16]}  Qe5 {[%clk 0:00:11]} 25. c6 {[%clk 0:00:15]}  Ba6 {[%clk 0:00:10]} 26. b4 {[%clk 0:00:15]}  Qd4+ {[%clk 0:00:08]} 27. Kh1 {[%clk 0:00:12]}  Re2 {[%clk 0:00:09]} 28. Bf1 {[%clk 0:00:11]}  Rxc2 {[%clk 0:00:09]} 29. R3xc2 {[%clk 0:00:10]}  Bxf1 {[%clk 0:00:09]} 30. Rxf1 {[%clk 0:00:10]}  h5 {[%clk 0:00:08]} 31. Rfc1 {[%clk 0:00:09]}  Qd3 {[%clk 0:00:08]} 32. Rc3 {[%clk 0:00:09]}  Qd5 {[%clk 0:00:08]} 33. a4 {[%clk 0:00:09]}  h4 {[%clk 0:00:08]} 34. b5 {[%clk 0:00:08]}  hxg3 {[%clk 0:00:08]} 35. hxg3 {[%clk 0:00:09]}  Qd2 {[%clk 0:00:07]} 36. a5 {[%clk 0:00:08]}  Qd4 {[%clk 0:00:06]} 37. Rc5 {[%clk 0:00:07]}  Qb4 {[%clk 0:00:06]} 38. b6 {[%clk 0:00:05]}  axb6 {[%clk 0:00:06]} 39. axb6 {[%clk 0:00:05]}  Qxb6 {[%clk 0:00:07]} 40. Kg2 {[%clk 0:00:05]}  g6 {[%clk 0:00:07]} 41. Kf2 {[%clk 0:00:05]}  Kg7 {[%clk 0:00:07]} 42. Kg2 {[%clk 0:00:05]}  Ra7 {[%clk 0:00:07]} 43. R1c2 {[%clk 0:00:05]}  Rc7 {[%clk 0:00:07]} 44. Kf2 {[%clk 0:00:05]}  Rxc6 {[%clk 0:00:06]} 45. Kg2 {[%clk 0:00:03]}  Rxc5 {[%clk 0:00:06]} 46. Rxc5 {[%clk 0:00:03]}  Qxc5 {[%clk 0:00:07]} 0-1


[Site "https://www.chess.com"]